Cogmind - Beta 13 @@@ ROGUE MODE // 2024.07.20 @ 19:27:33 Player: Blaj Result: Self-destructed Performance ------------- Evolutions (1) 500 Regions Visited (5) 1000 Robots Destroyed (38) 190 Value Destroyed (875) 875 Prototype IDs (24) 480 Alien Tech Used (0) 0 Bonus (428) 428 TOTAL SCORE: 3473 Bonus ------- High Alert Combat Kills 24 Follower Combat Kills 104 Aligned with FarCom 300 Cogmind --------- Core Integrity 268/400 Matter 220/300 Energy 250/250 System Corruption 0% Temperature Cool (0) Movement Treading (150) Location -9/Exiles Parts ------- > --- POWER (1) -------- Ion Engine > --- PROPULSION (3) --- Light Treads Advanced Treads Advanced Treads > --- UTILITY (3) ------ Heat Sink Improved Light Armor Plating > --- WEAPON (2) ------- Advanced Beam Cannon Grenade Launcher > --- INVENTORY (5) ---- Rocket Launcher Peak State ------------ > --- POWER ------------ Ion Engine > --- PROPULSION ------- Light Treads Advanced Treads Advanced Treads > --- UTILITY ---------- Heat Sink Huge Storage Unit Improved Light Armor Plating > --- WEAPON ----------- Advanced Beam Cannon Advanced Beam Cannon > --- INVENTORY -------- Nuclear Core Light Fission Core Light Fission Core Light Treads Light Treads Advanced Treads Advanced Treads Armored Wheel Armored Wheel Cooling System Large Matter Pod Signal Interpreter Improved Light Armor Plating Improved Light Armor Plating Improved Light Armor Plating EM Shotgun EM Shotgun Latent Energy Streamer Grenade Launcher Rocket Launcher Plasma Cutter Blade Trap Blade Trap Blade Trap Blade Trap [Rating: 25] Favorites ----------- Power Ion Engine Engine Ion Engine Propulsion Advanced Treads Treads Advanced Treads Leg Aluminum Leg Wheel Armored Wheel Utility Huge Storage Unit Device Heat Sink Storage Huge Storage Unit Processor Targeting Computer Protection Light Armor Plating Weapon Advanced Beam Cannon Energy Gun Medium Laser Energy Cannon Advanced Beam Cannon Ballistic Gun Assault Rifle Launcher Grenade Launcher Special Weapon Mining Laser Build | -11 -10 -10 -9 -9 -9 ------- Run | Yrd Mat Min Mat Min Exi Slots Evolved 2 | . . . 2 . . Power . | . . . . . . Propulsion 1 | . . . 1 . . Utility 1 | . . . 1 . . Weapon . | . . . . . . Parts Attached 39 | 3 7 7 16 2 4 Power 2 | . 1 . . 1 . Engine 2 | . 1 . . 1 . Core . | . . . . . . Reactor . | . . . . . . Propulsion 11 | 2 3 1 4 1 . Treads 6 | 2 . . 3 1 . Leg . | . . . . . . Wheel 5 | . 3 1 1 . . Hover . | . . . . . . Flight . | . . . . . . Utility 8 | 1 2 1 3 . 1 Device 2 | 1 . . 1 . . Storage 2 | . 2 . . . . Processor 1 | . . 1 . . . Hackware . | . . . . . . Protection 3 | . . . 2 . 1 Artifact . | . . . . . . Weapon 18 | . 1 5 9 . 3 Energy Gun 7 | . 1 3 3 . . Energy Cannon 4 | . . . 3 . 1 Ballistic Gun . | . . . . . . Ballistic Cannon . | . . . . . . Launcher 6 | . . 2 2 . 2 Special Weapon 1 | . . . 1 . . Impact Weapon . | . . . . . . Slashing Weapon . | . . . . . . Piercing Weapon . | . . . . . . Special Melee Weapon . | . . . . . . Unidentified Prototypes 1 | . . . 1 . . Parts Lost 7 | . 3 3 1 . . Power 2 | . 1 . 1 . . Propulsion 2 | . 1 1 . . . Utility 1 | . . 1 . . . Weapon 2 | . 1 1 . . . Highest Loss Streak 3 | . 3 3 1 . . To Critical Strikes . | . . . . . . Average Slot Usage (%) 95 | . 100 98 89 97 94 Engine 11 | . 14 14 7 8 11 Treads 18 | . 11 . 14 31 33 Wheel 12 | . 16 27 16 1 . Device 7 | . 14 3 1 11 11 Storage 11 | . 14 14 11 11 7 Processor 3 | . . 9 9 . . Protection 5 | . . . 6 11 11 Energy Gun 9 | . 14 24 6 . . Energy Cannon 11 | . . . 14 22 18 Ballistic Gun 2 | . 14 3 . . . Naked Turns . | . . . . . . Heaviest Build 97 | 15 90 90 96 97 97 Greatest Support 64 | 40 40 24 24 64 64 Greatest Overweight (x) 7 | . 3 7 7 7 1 Average Overweight (x) 2 | . 1 3 4 2 . Largest Inventory Capacity 25 | 8 25 25 25 25 25 Average Capacity 21 | 8 15 25 25 25 17 Most Carried 25 | 7 11 13 25 25 25 Average Carried 16 | 4 6 11 19 25 17 Final Capacity 25 | 8 25 25 25 25 5 Final Carried 25 | 4 8 11 25 25 1 Class Distribution -------------------- 76% | Mutant 23% | Scavenger-Mutant Dominant Class ---------------- Mutant | -10/Materials Mutant | -10/Mines Mutant | -9/Materials Scavenger-Mutant | -9/Mines Mutant | -9/Exiles Resources | -11 -10 -10 -9 -9 -9 ----------- Run | Yrd Mat Min Mat Min Exi Matter Collected 1023 | 245 56 411 265 6 40 Remotely . | . . . . . . Salvage Created 933 | 92 106 154 472 109 . Parts 62 | 6 18 5 28 5 . Haulers Intercepted 2 | . . . 2 . . Recyclers Shooed 3 | 1 2 . . . . Parts Field Recycled . | . . . . . . Retrieved Matter . | . . . . . . Parts Self-Destructed . | . . . . . . Prevented . | . . . . . . Kills | -11 -10 -10 -9 -9 -9 ------- Run | Yrd Mat Min Mat Min Exi Combat Hostiles Destroyed 31 | . 3 8 13 3 4 Melee 1 | . . . . 1 . Guns 6 | . 3 3 . . . Cannons 6 | . . . 4 2 . AOE 18 | . . 5 9 . 4 Classes Destroyed 11 | 2 2 3 3 . 1 Worker 2 | . . 1 . 1 . Builder 1 | . . . 1 . . Tunneler 2 | 1 . 1 . . . Hauler 2 | . . . 2 . . Recycler 1 | 1 . . . . . Watcher 3 | . 3 . . . . Swarmer 11 | . 3 5 3 . . Grunt 11 | . . . 8 3 . Sentry 4 | . . 2 2 . . Demolisher 1 | . . 1 . . . Assembled 4 | . . . . . 4 Best Kill Streak 7 | 2 3 5 7 4 4 Combat Bots Only 6 | . 2 3 6 2 4 Max Kills in Single Turn 3 | 1 1 3 3 1 2 Gunslinging . | . . . . . . Exploded 3 | . . 2 3 . 2 Melee 1 | . . . . 1 . Uniques/NPCs Destroyed . | . . . . . . Combat | -11 -10 -10 -9 -9 -9 -------- Run | Yrd Mat Min Mat Min Exi Hostile Shots Fired 143 | . 30 44 41 19 9 Missed 34 | . 5 16 6 3 4 Damage Taken 1790 | . 487 459 438 220 186 Core 350 | . 128 90 110 22 . Absorbed by Shields . | . . . . . . Regen/Repaired (Parts) 75 | . . . 75 . . Core Remaining (%) 56 | 100 . 12 . . . Volleys Fired 99 | 5 24 24 28 8 10 Largest 2 | 2 2 2 2 2 1 Hottest 145 | 70 70 100 145 136 68 Shots Fired 173 | 10 48 43 46 16 10 Gun 95 | 10 48 36 1 . . Cannon 52 | . . . 34 16 2 Launcher 25 | . . 7 10 . 8 Special 1 | . . . 1 . . Kinetic 40 | 5 24 11 . . . Thermal 107 | 5 24 25 35 16 2 Explosive 25 | . . 7 10 . 8 Electromagnetic 1 | . . . 1 . . Robot Hit Streak 8 | 3 4 8 5 7 1 Robot Miss Streak 6 | 2 6 5 2 2 2 Penetration Max . | . . . . . . Secondary Targets . | . . . . . . Shots Hit Robots 93 | 6 24 23 29 9 2 Core Hits 56 | 3 9 11 20 3 10 Critical Kills . | . . . . . . Critical Parts Destroyed . | . . . . . . Critical Strikes 1 | . 1 . . . . Burn 1 | . 1 . . . . Melee Attacks . | . . . . . . Impact . | . . . . . . Slashing . | . . . . . . Piercing . | . . . . . . Sneak Attacks . | . . . . . . Combat Hostiles . | . . . . . . Follow-up Attacks . | . . . . . . Damage Inflicted 3011 | 76 305 793 1299 280 258 Guns 652 | 76 303 273 . . . Cannons 699 | . . . 492 207 . Explosions 1572 | . . 507 807 . 258 Melee . | . . . . . . Ramming 88 | . 2 13 . 73 . Kinetic 264 | 38 141 85 . . . Thermal 1087 | 38 162 188 492 207 . Explosive 1572 | . . 507 807 . 258 Electromagnetic . | . . . . . . Impact . | . . . . . . Slashing . | . . . . . . Piercing . | . . . . . . Highest Corruption 2 | . 2 2 . . . Average Corruption 2 | . 2 2 . . . Corruption Purged . | . . . . . . Corruption Blocked . | . . . . . . Effects 20 | . 1 19 . . . Message Errors 3 | . . 3 . . . Matter Fused 4 | . . 4 . . . Heat Flow Errors 3 | . . 3 . . . Energy Discharges 4 | . 1 3 . . . Data Loss (minor) 3 | . . 3 . . . Data Loss (major) 1 | . . 1 . . . Misfires 2 | . . 2 . . . Overload Shots . | . . . . . . Overflow Damage 74 | . . 34 37 3 . Projectiles . | . . . . . . Explosions 71 | . . 34 37 . . Melee 3 | . . . . 3 . Knockbacks 1 | . . . . 1 . Impact 1 | . . . . 1 . Kinetic . | . . . . . . Secondary . | . . . . . . Self-Inflicted Damage 125 | . . 38 . . 87 Shots 6 | . . 2 . . 4 Rammed 11 | . 1 1 . 9 . Targets Rammed 12 | . 1 1 . 10 . Kicked . | . . . . . . Crushed 1 | . . . . 1 . Highest Temperature 316 | 27 159 316 267 222 6 Average Temperature 74 | 11 36 92 92 90 4 Received Heat Transfer 468 | . 96 90 156 126 . Siege Activations . | . . . . . . Robots Corrupted . | . . . . . . Combat Hostiles . | . . . . . . Parts Fried . | . . . . . . Impact Corruptions 1 | . . . . 1 . Robots Melted . | . . . . . . Combat Hostiles . | . . . . . . Parts Melted 5 | . . 3 1 1 . Heat Transferred 2479 | 111 555 555 888 370 . Parts Sabotaged . | . . . . . . Parts Stolen . | . . . . . . Parts Stripped . | . . . . . . Power Chain Reactions . | . . . . . . Alert | -11 -10 -10 -9 -9 -9 ------- Run | Yrd Mat Min Mat Min Exi Peak Influence 518 | 10 203 147 518 228 . Initial 153 | . 6 5 31 153 . Average 129 | 5 128 77 269 110 . Maximum Alert Level 2 | . 1 . 2 1 . Low Security (%) 77 | 100 90 100 32 70 . Level 1 17 | . 9 . 45 29 . Level 2 4 | . . . 21 . . Level 3 . | . . . . . . Level 4 . | . . . . . . Level 5 . | . . . . . . High Security . | . . . . . . Max Security . | . . . . . . Squads Dispatched 5 | . 2 . 3 . . Investigation 1 | . . . 1 . . Extermination . | . . . . . . Reinforcement 4 | . 2 . 2 . . Assault . | . . . . . . Garrison . | . . . . . . Intercept . | . . . . . . Searches Triggered . | . . . . . . Construction Impeded . | . . . . . . Haulers Reinforced . | . . . . . . Active Scanning Responses . | . . . . . . Cargo Convoy Interrupts . | . . . . . . Stealth | -11 -10 -10 -9 -9 -9 --------- Run | Yrd Mat Min Mat Min Exi Distress Signals 4 | . 2 . 2 . . Communications Jammed . | . . . . . . Distress Signals . | . . . . . . Times Spotted 52 | . 12 12 20 3 5 Peak Tracking Total 9 | . 4 3 6 3 9 Tactical Retreats 5 | . 2 3 . . . Traps | -11 -10 -10 -9 -9 -9 ------- Run | Yrd Mat Min Mat Min Exi Traps Triggered 1 | . 1 . . . . Indirectly . | . . . . . . Trap Hack Attempts . | . . . . . . Triggered . | . . . . . . Disarmed . | . . . . . . Reprogrammed . | . . . . . . Reused 4 | . . . . . 4 Traps Extracted . | . . . . . . Installed 4 | . . . . . 4 Triggered . | . . . . . . Most Traps Carried 4 | . . 4 4 4 4 Machines | -11 -10 -10 -9 -9 -9 ---------- Run | Yrd Mat Min Mat Min Exi Machines Disabled 9 | . . 1 3 . 5 Max in Single Turn 1 | . . 1 1 . 1 Machines Repaired . | . . . . . . Machines Dismantled . | . . . . . . Machines Sabotaged . | . . . . . . Overloaded Fab Kills . | . . . . . . Hacking | -11 -10 -10 -9 -9 -9 --------- Run | Yrd Mat Min Mat Min Exi Machines Accessed 8 | . 3 . 4 . 1 Terminals 6 | . 3 . 3 . . Fabricators . | . . . . . . Repair Stations 1 | . . . 1 . . Recycling Units . | . . . . . . Scanalyzers . | . . . . . . Garrison Access . | . . . . . . Total Hacks 18 | . 8 . 9 . 1 Successful 9 | . 1 . 7 . 1 Failed 9 | . 7 . 2 . . Catastrophic 1 | . 1 . . . . Database Lockouts . | . . . . . . Manual 8 | . 5 . 2 . 1 Terminals 15 | . 8 . 7 . . Fabricators . | . . . . . . Repair Stations 2 | . . . 2 . . Recycling Units . | . . . . . . Scanalyzers . | . . . . . . Garrison Access . | . . . . . . Terminal Hacks 6 | . 1 . 4 . 1 Branch Access Points 1 | . . . 1 . . Terminal Index 1 | . . . 1 . . Hauler Manifests 2 | . 1 . 1 . . Zone Layout 1 | . . . 1 . . Derelict Proto ID Bank 1 | . . . . . 1 Fabricator Hacks . | . . . . . . Repair Station Hacks 2 | . . . 2 . . Scan Component 1 | . . . 1 . . Repair 1 | . . . 1 . . Recycling Unit Hacks . | . . . . . . Scanalyzer . | . . . . . . Garrison Access Hacks . | . . . . . . Unauthorized Hacks 1 | . . . 1 . . Terminals 1 | . . . 1 . . Botnet 1 | . . . 1 . . Fabricators . | . . . . . . Repair Stations . | . . . . . . Recycling Units . | . . . . . . Scanalyzers . | . . . . . . Garrison Access . | . . . . . . Data Cores Recovered . | . . . . . . Used . | . . . . . . Hacking Detections 7 | . 3 . 4 . . Full Trace Events 1 | . . . 1 . . Feedback Events . | . . . . . . Feedback Blocked . | . . . . . . Robot Schematics Acquired . | . . . . . . Robots Built . | . . . . . . Authchips . | . . . . . . Time . | . . . . . . Total Robot Build Rating . | . . . . . . Part Schematics Acquired . | . . . . . . Parts Built . | . . . . . . Authchips . | . . . . . . Time . | . . . . . . Total Part Build Rating . | . . . . . . Parts Repaired 1 | . . . 1 . . Time 32 | . . . 32 . . Parts Recycled . | . . . . . . Recycled Matter . | . . . . . . Retrieved Matter . | . . . . . . Retrieved Components . | . . . . . . Parts Scanalyzed . | . . . . . . Part Schematics Acquired . | . . . . . . Parts Damaged . | . . . . . . Bothacking | -11 -10 -10 -9 -9 -9 ------------ Run | Yrd Mat Min Mat Min Exi Used RIF Installer . | . . . . . . Robots Hacked . | . . . . . . Non-combat . | . . . . . . Combat . | . . . . . . Robot Hacks Applied . | . . . . . . Relay Couplers Released . | . . . . . . Fabnet Peak Effective % . | . . . . . . Robots Rewired . | . . . . . . Allies Hacked . | . . . . . . Hacks Repelled . | . . . . . . Allies | -11 -10 -10 -9 -9 -9 -------- Run | Yrd Mat Min Mat Min Exi Total Allies 5 | . . 3 . 2 . Largest Group 3 | . . 3 3 2 2 Highest-Rated Group 41 | . . 40 37 41 41 Highest-Rated Ally 31 | . . 16 16 31 31 Total Orders . | . . . . . . Ally Attacks 47 | . . 4 43 . . Total Damage 392 | . . 49 343 . . Kills 10 | . . 3 7 . . Allies Corrupted . | . . . . . . Allies Melted . | . . . . . . Intel | -11 -10 -10 -9 -9 -9 ------- Run | Yrd Mat Min Mat Min Exi Robot Analysis Total . | . . . . . . Derelict Logs Recovered 3 | . . 1 . 2 . Drone Launches . | . . . . . . Drone Recoveries . | . . . . . . Exploration | -11 -10 -10 -9 -9 -9 ------------- Run | Yrd Mat Min Mat Min Exi Turns Passed 4023 | 78 443 1111 586 822 983 Spaces Moved 2069 | 37 248 721 266 344 453 Core . | . . . . . . Treads 850 | 36 81 . . 280 453 Legs 1 | 1 . . . . . Wheels 1218 | . 167 721 266 64 . Hover . | . . . . . . Flight . | . . . . . . Fastest Speed 90 | 120 90 135 135 195 150 Average Speed 166 | 158 132 135 158 223 198 Slowest Speed 230 | 160 160 195 195 230 230 Overloaded Moves . | . . . . . . Propulsion Burnouts . | . . . . . . Robots Hopped . | . . . . . . Cave-ins Triggered . | . . . . . . Exploration Rate (%) 56 | 5 51 99 38 74 69 Regions Visited 5 Branch Regions 3 Pre-discovered Areas 1 | . . . . 1 . Known Exits Taken 2 | . . 1 1 . . Unknown Exits Taken 3 | 1 1 . . 1 . Scrap Searched 4 | . . 3 . 1 . Spaces Dug 45 | . . 38 1 . 6 Terrain Destroyed 120 | . . 40 49 . 31 Melee . | . . . . . . Projectile 1 | . . . 1 . . AOE 119 | . . 40 48 . 31 Terrain Rammed . | . . . . . . Walls Destroyed . | . . . . . . Machines Disabled . | . . . . . . Actions | -11 -10 -10 -9 -9 -9 --------- Run | Yrd Mat Min Mat Min Exi Total 2462 | 47 315 813 382 368 537 Wait 157 | . 20 54 49 5 29 Move 2064 | 36 247 720 265 343 453 Hop . | . . . . . . Pick Up 44 | . 10 6 13 . 15 Fast Attach 13 | 1 . 1 8 1 2 Attach 11 | 2 5 2 1 . 1 Detach 8 | 1 1 . 6 . . Swap 15 | . 2 4 7 1 1 Drop 35 | 2 5 1 5 . 22 Fire 99 | 5 24 24 28 8 10 Melee . | . . . . . . Ram 1 | . . 1 . . . Kick . | . . . . . . Crush 11 | . 1 . . 10 . Escape Stasis . | . . . . . . Rewire . | . . . . . . Trap 4 | . . . . . 4 Miscellaneous . | . . . . . . Route ------- -11/Scrapyard -10/Materials (discovered 3 exits: *Mat x2 / [*Min]) -10/Mines (discovered 3 exits: *Mat x2 / [*Sub]) -9/Materials (discovered 2 exits: *Min x2) -9/Mines -9/Exiles (discovered 1 exit: [*Min]) History --------- Turn | Location | Event 1 | -11/Scrapyard | Discovered new exit (range 2) 79 | -11/Scrapyard | Entered Materials 281 | -10/Materials | Discovered new exit (range 11) 325 | -10/Materials | Build established: Mutant 332 | -10/Materials | Discovered new exit (range 16) 396 | -10/Materials | Discovered new exit (range 7) 441 | -10/Materials | Core integrity fell below 50% 471 | -10/Materials | Lost 3 parts (1p1n1w) 522 | -10/Materials | Entered Mines 523 | -10/Mines | Assembled infested the area 528 | -10/Mines | Assisted by a Guerilla fighting off Assembled 529 | -10/Mines | Received a Rocket Launcher from a helpful Derelict 654 | -10/Mines | Found a hidden stash of uninstalled traps 802 | -10/Mines | Core integrity fell below 20% 838 | -10/Mines | Lost 3 parts (1n1u1w) 897 | -10/Mines | Identified exit to Materials 996 | -10/Mines | Discovered exit to Materials (range 14) 1273 | -10/Mines | Assisted by bots powering up and referring to "LRC-V3" 1375 | -10/Mines | A weapon hastily lodged in a ceiling crevice suddenly fell to the ground 1508 | -10/Mines | Discovered new exit (range 7) 1633 | -10/Mines | Entered Materials 1633 | -9/Materials | Accompanied by 3 allies 1633 | -9/Materials | Evolved 2 slots: Propulsion x1, Utility x1 1692 | -9/Materials | Repaired Arm. Wheel 1894 | -9/Materials | Identified exit to Mines 2219 | -9/Materials | Entered Mines 2247 | -9/Mines | Learned Materials stockpile data 2340 | -9/Mines | Learned location of Zion (-7) 2565 | -9/Mines | Deemed a non-threat by the Exiles lab entrance 2567 | -9/Mines | Discovered new exit (range 5) 2699 | -9/Mines | Build established: Scavenger-Mutant 3041 | -9/Mines | Entered Exiles 3041 | -9/Exiles | Accompanied by 2 allies 3071 | -9/Exiles | Led the pair of lost Derelicts to a safe place 3136 | -9/Exiles | Met 8R-AWN 3175 | -9/Exiles | Met EX-HEX 3241 | -9/Exiles | Met EX-BIN 3267 | -9/Exiles | Aligned with FarCom system 3269 | -9/Exiles | Given EX-Vault access code 3322 | -9/Exiles | Opened EX-Vault 3342 | -9/Exiles | Found Latent Energy Streamer 3393 | -9/Exiles | Warned to stay clear of 0b10 Research branches 3462 | -9/Exiles | Met EX-DEC 3638 | -9/Exiles | Build established: Mutant 3660 | -9/Exiles | Discovered new exit (range 11) 3921 | -9/Exiles | Attacked by the Exiles 4024 | -9/Exiles | Self-destructed Last Messages --------------- 03967_ as-08310 destroyed. 03971_ The unstable cave ceiling collapses. 03977_ Dropped Blade Trap. 03977_ Installed Blade Trap. 03980_ Dropped Blade Trap. 03980_ Installed Blade Trap. 03983_ Dropped Blade Trap. 03983_ Installed Blade Trap. 03986_ Dropped Blade Trap. 03986_ Installed Blade Trap. 03989_ Machine disabled. 04019_ 8R-AWN triggered Blade Trap. 04019_ Massive razor-sharp blades shoot up from within the floor. 04020_ Penetrated by HV Slug. 04020_ HV Slug penetrates Wall. 04020_ Penetrated by HV Slug. 04020_ HV Slug penetrates Wall. 04022_ Penetrated by HV Slug. 04022_ HV Slug penetrates Wall. Map ----- +----------------------------------------------------+ | ?????????????????????????????????????????????????? | | ?????????????????????????????????????????????????? | | ?????????????????????????????????????????????????? | | ?????????????????????????????????????????????????? | | ?????????????????????????????????????????????????? | | ?????????????????????????????????????????????????? | | ?????????????????????????????????????????????????? | | ?????????????????????????????????????????????????? | | ?????????????????????????????????????????????????? | | ?????????????????????????????????????????????????? | | ?????????????????????????????????????????????????? | | ????????????????#####????????????????????????????? | | ???????????????## ##???????????????????????????? | | ???????????????# #???????????????????????????? | | ???????????????# < !#???????????????????????????? | | ???????????????# = =###?????????????????????????? | | ???????????????# ! [[#?????????????????????????? | | ???????????????# ! !=##?????????????????????????? | | ???????????????## ]|= #??????????????????????????? | | ????????????????# ! !!##?????????????????????????? | | ????????????????## ]= #????????????#######??????? | | ?????????????????# #######??????#!!! "#??????? | | ?????????????????# #""##?????# "#??????? | | ?????????????????## #?????# "#??????? | | ??????????????????##" ##???## ""#??????? | | ??????????????????#"" @ #####" ""#??????? | | ??????????????????#### ##" "#??????? | | ???????????????????# ;# g #"" ###??????? | | ???????????????????#??# ## ####???? | | ??????????????????????####### #???? | | ????????????????????????????### #??? | | ??????????????????????########" # #???? | | ??????????????????????# !!""""" #???? | | ??????????????????????#! = # ##### | | ??????????????????????#! # ""# | | ??????????????????????#! # % | | ??????????????????????# !""""""# #####" % | | ??????????????????????############???###" | | ????????????????????????????????????????##" | | ??????????????????????????????????????????### | | ????????????????????????????????????????????## | | ?????????????????????????????????????????????## | | ??????????????????????????????????????????????##" | | ???????????????????????????????????????????????#"" | | ??????????????????????????????????????????????##" | | ??????????????????????????????????????????????#"" | | ??????????????????????????????????????????????#""" | | ?????????????????????????????????????????????#""" | | ?????????????????????????????????????????????#""" | | ?????????????????????????????????????????????#"" | +----------------------------------------------------+ Best States ------------- Heat Dissipation 38 Energy Generation 10 Energy Capacity 250 Matter Stores 300 Matter Capacity 300 Sight Range 16 Terrain Scan Density 10 Armor Coverage 150 Evasion (%) 42 Targeting Accuracy 5 Recoil Reduction 3 Item Schematics ----------------- None Robot Schematics ------------------ None Fabricated ------------ Nothing Alien Tech Used ----------------- None Achievements -------------- None Challenges ------------ None Game ------ Seed NetworkIntegratedRigger Manual? 0 Play Time 00:27:45 Cumulative 177.1 hours Start 2024.07.20 @ 18:59:37 End 2024.07.20 @ 19:27:33 Sessions 1 Manual Loads 0 Difficulty Rogue Special Mode None Game No. 45 Rogue 45 Adventurer 0 Explorer 0 Win Type - Total 7 Types 4/0/2/0/0/1/0/0/0 Lore% 64 Gallery% 79 Achievement% 69 Wizard Run 0 Options --------- Layout 2 ASCII 0 Keyboard 1 Movement Vi Keybinds 0 Fullscreen 1 Font 24/Smallcaps Map View 50x44 Zoom Use 0% Tactical HUD 1 Map Filters NONE Filters NONE Steam 1 RUN: ca085ada-62f2-4fc5-968a-f72a148a48f6